fUSD/lending_fUSD_20250202
["ID","MTS","AMOUNT","RATE_DAILY","PERIOD"]
[351280973,1738505526198,-1305.07,0.00012328,2]
[351280974,1738505526208,-1841.9,0.00012328,2]
[351280975,1738505526219,-734.22,0.00012328,2]
[351280976,1738505526228,-500.0,0.00012328,2]
[351280977,1738505526237,-1731.58,0.00012328,2]
[351280978,1738505526246,-573.1,0.00012328,2]
[351280979,1738505526256,-500.0,0.00012328,2]
[351280980,1738505526266,-500.0,0.00012328,2]
[351280981,1738505526276,-1366.78,0.00012328,2]
[351280982,1738505526285,-500.0,0.00012328,2]
[351280983,1738505526295,-1447.06,0.00012328,2]
[351280984,1738505526305,-500.0,0.00012328,2]
[351280985,1738505526315,-955.56,0.00012328,2]
[351280986,1738505526325,-521.42,0.00012328,2]
[351280987,1738505526335,-500.0,0.00012328,2]
[351280988,1738505526345,-904.27,0.00012328,2]
[351280989,1738505526354,-854.39,0.00012328,2]
[351280990,1738505526365,-263.34,0.00012328,2]
[351280991,1738505526374,-2762.56,0.00012328,2]
[351280992,1738505526384,-500.0,0.00012328,2]
[351280993,1738505526393,-500.0,0.00012328,2]
[351280994,1738505526403,-666.98,0.00012328,2]
[351280995,1738505526413,-783.0,0.00012328,2]
[351280996,1738505526423,-500.0,0.00012328,2]
[351280997,1738505526434,-2104.01,0.00012328,2]
[351280998,1738505526444,-2287.85,0.00012328,2]
[351280999,1738505526454,-500.0,0.00012328,2]
[351281000,1738505526463,-944.74,0.00012328,2]
[351281001,1738505526473,-738.27,0.00012328,2]
[351281002,1738505526484,-505.82,0.00012328,2]
[351281003,1738505526494,-1519.92,0.00012328,2]
[351281004,1738505526503,-1297.85,0.00012328,2]
[351281005,1738505526513,-500.0,0.00012328,2]
[351281006,1738505526522,-500.0,0.00012328,2]
[351281007,1738505526533,-500.0,0.00012328,2]
[351281008,1738505526546,-500.0,0.00012328,2]
[351281009,1738505526556,-500.0,0.00012328,2]
[351281010,1738505526565,-643.77,0.00012328,2]
[351281011,1738505526575,-784.02,0.00012328,2]
[351281012,1738505526585,-500.0,0.00012328,2]
[351281013,1738505526594,-500.0,0.00012328,2]
[351281014,1738505526604,-500.0,0.00012328,2]
[351281015,1738505526614,-500.0,0.00012328,2]
[351281016,1738505526624,-529.45,0.00012328,2]
[351281017,1738505526633,-500.0,0.00012328,2]
[351281018,1738505526643,-1418.55,0.00012328,2]
[351281019,1738505526652,-500.0,0.00012328,2]
[351281020,1738505526662,-517.07,0.00012328,2]
[351281021,1738505526672,-2783.69,0.00012328,2]
[351281022,1738505526681,-1420.23,0.00012328,2]
[351281023,1738505526691,-1225.35,0.00012328,2]
[351281024,1738505526700,-2181.51,0.00012328,2]
[351281025,1738505526710,-500.0,0.00012328,2]
[351281026,1738505526720,-500.0,0.00012328,2]
[351281027,1738505526731,-500.0,0.00012328,2]
[351281028,1738505526740,-942.19,0.00012328,2]
[351281029,1738505526750,-507.86,0.00012328,2]
[351281030,1738505526759,-844.52,0.00012328,2]
[351281031,1738505526769,-507.8986106,0.00012328,2]
[351281032,1738505526778,-1267.86,0.00012328,2]
[351281033,1738505526788,-192.44256496,0.00012328,2]
[351281034,1738505526797,-500.0,0.00012328,2]
[351281035,1738505526806,-1642.95,0.00012328,2]
[351281036,1738505526816,-632.5,0.00012328,2]
[351281037,1738505526825,-500.0,0.00012328,2]
[351281038,1738505526835,-717.96,0.00012328,2]
[351281039,1738505526844,-862.89,0.00012328,2]
[351281040,1738505526853,-500.0,0.00012328,2]
[351281041,1738505526863,-978.15,0.00012328,2]
[351281042,1738505526872,-1851.1,0.00012328,2]
[351281043,1738505526882,-591.76,0.00012328,2]
[351281044,1738505526891,-722.67,0.00012328,2]
[351281045,1738505526900,-500.0,0.00012328,2]
[351281046,1738505526910,-500.0,0.00012328,2]
[351281047,1738505526920,-520.38,0.00012328,2]
[351281048,1738505526929,-500.0,0.00012328,2]
[351281049,1738505526938,-500.0,0.00012328,2]
[351281050,1738505526948,-1708.12,0.00012328,2]
[351281051,1738505526957,-523.57,0.00012328,2]
[351281052,1738505526967,-500.0,0.00012328,2]
[351281053,1738505526976,-760.88,0.00012328,2]
[351281054,1738505526987,-500.0,0.00012328,2]
[351281055,1738505526997,-500.0,0.00012328,2]
[351281056,1738505527006,-500.0,0.00012328,2]
[351281057,1738505527016,-1175.0,0.00012328,2]
[351281058,1738505527026,-811.43,0.00012328,2]
[351281059,1738505527035,-1373.61,0.00012328,2]
[351281060,1738505527045,-1105.09,0.00012328,2]
[351281061,1738505527054,-747.24,0.00012328,2]
[351281062,1738505527063,-1419.66,0.00012328,2]
[351281063,1738505527072,-899.67,0.00012328,2]
[351281064,1738505527082,-500.0,0.00012328,2]
[351281065,1738505527091,-500.0,0.00012328,2]
[351281066,1738505527100,-500.0,0.00012328,2]
[351281067,1738505527110,-814.85,0.00012328,2]
[351281068,1738505527300,-967.34,0.00012328,2]
[351281069,1738505527314,-984.06,0.00012328,2]
[351281070,1738505527323,-709.72,0.00012328,2]
[351281071,1738505527333,-580.72,0.00012328,2]
[351281072,1738505527343,-500.0,0.00012328,2]
[351281073,1738505527352,-509.47,0.00012328,2]
[351281074,1738505527362,-1025.92,0.00012328,2]
[351281075,1738505527371,-1529.4,0.00012328,2]
[351281076,1738505527380,-500.0,0.00012328,2]
[351281077,1738505527390,-736.8,0.00012328,2]
[351281078,1738505527399,-500.0,0.00012328,2]
[351281079,1738505527409,-500.0,0.00012328,2]
[351281080,1738505527418,-500.0,0.00012328,2]
[351281081,1738505527427,-500.0,0.00012328,2]
[351281082,1738505527437,-500.0,0.00012328,2]
[351281083,1738505527446,-500.0,0.00012328,2]
[351281084,1738505527456,-500.0,0.00012328,2]
[351281085,1738505527466,-794.58,0.00012328,2]
[351281086,1738505527475,-500.0,0.00012328,2]
[351281087,1738505527487,-515.19,0.00012328,2]
[351281088,1738505527496,-551.09,0.00012328,2]
[351281089,1738505527506,-500.0,0.00012328,2]
[351281090,1738505527516,-500.0,0.00012328,2]
[351281091,1738505527526,-1457.11,0.00012328,2]
[351281092,1738505527538,-500.0,0.00012328,2]
[351281093,1738505527548,-848.94,0.00012328,2]
[351281094,1738505527558,-1457.16,0.00012328,2]
[351281095,1738505527568,-512.04,0.00012328,2]
[351281096,1738505527579,-562.76,0.00012328,2]
[351281097,1738505527589,-545.26143399,0.00012328,2]
[351281098,1738505527599,-580.26726221,0.00012328,2]
[351281099,1738505527610,-1032.24,0.00012328,2]
[351281100,1738505527624,-1061.96,0.00012328,2]
[351281101,1738505527634,-510.71,0.00012328,2]
[351281102,1738505527645,-500.0,0.00012328,2]
[351281103,1738505527655,-1015.65,0.00012328,2]
[351281104,1738505527664,-679.22,0.00012328,2]
[351281105,1738505527674,-1177.9,0.00012328,2]
[351281106,1738505527684,-500.0,0.00012328,2]
[351281107,1738505527693,-500.0,0.00012328,2]
[351281108,1738505527703,-584.42,0.00012328,2]
[351281109,1738505527712,-1657.79,0.00012328,2]
[351281110,1738505527722,-1057.32,0.00012328,2]
[351281111,1738505527733,-500.0,0.00012328,2]
[351281112,1738505527743,-500.0,0.00012328,2]
[351281113,1738505527753,-500.0,0.00012328,2]
[351281114,1738505527763,-737.32,0.00012328,2]
[351281115,1738505527773,-865.79,0.00012328,2]
[351281116,1738505527783,-1316.4,0.00012328,2]
[351281117,1738505527792,-500.0,0.00012328,2]
[351281118,1738505527801,-671.26,0.00012328,2]
[351281119,1738505527811,-751.62,0.00012328,2]
[351281120,1738505527820,-1011.53,0.00012328,2]
[351281121,1738505527830,-750.62,0.00012328,2]
[351281122,1738505527839,-500.0,0.00012328,2]
[351281123,1738505527849,-1248.28,0.00012328,2]
[351281124,1738505527858,-519.27,0.00012328,2]
[351281125,1738505527868,-500.0,0.00012328,2]
[351281126,1738505527878,-500.0,0.00012328,2]
[351281127,1738505527887,-775.41,0.00012328,2]
[351281128,1738505527897,-650.78,0.00012328,2]
[351281129,1738505527907,-500.0,0.00012328,2]
[351281130,1738505527917,-787.2,0.00012328,2]
[351281131,1738505527927,-404.81980815,0.00012328,2]
[351281132,1738505527937,-500.0,0.00012328,2]
[351281133,1738505527947,-1398.59,0.00012328,2]
[351281134,1738505527957,-2098.34,0.00012328,2]
[351281135,1738505527967,-1717.3,0.00012328,2]
[351281136,1738505527977,-500.0,0.00012328,2]
[351281137,1738505527988,-535.92,0.00012328,2]
[351281138,1738505527998,-500.0,0.00012328,2]
[351281139,1738505528007,-500.0,0.00012328,2]
[351281140,1738505528017,-520.83,0.00012328,2]
[351281141,1738505528027,-500.0,0.00012328,2]
[351281142,1738505528037,-500.0,0.00012328,2]
[351281143,1738505528047,-1388.03,0.00012328,2]
[351281144,1738505528057,-696.21,0.00012328,2]
[351281145,1738505528067,-1438.93,0.00012328,2]
[351281146,1738505528076,-638.42,0.00012328,2]
[351281147,1738505528088,-1523.64,0.00012328,2]
[351281148,1738505528097,-500.0,0.00012328,2]
[351281149,1738505528107,-500.0,0.00012328,2]
[351281150,1738505528116,-1164.79,0.00012328,2]
[351281151,1738505528126,-500.0,0.00012328,2]
[351281152,1738505528136,-2008.34,0.00012328,2]
[351281153,1738505528146,-867.5,0.00012328,2]
[351281154,1738505528156,-500.0,0.00012328,2]
[351281155,1738505528166,-930.83,0.00012328,2]
[351281156,1738505528175,-1142.86,0.00012328,2]
[351281157,1738505528185,-1063.97,0.00012328,2]
[351281158,1738505528196,-5963.38,0.00012328,2]
[351281159,1738505528205,-632.65,0.00012328,2]
[351281160,1738505528215,-528.98,0.00012328,2]
[351281161,1738505528225,-939.46,0.00012328,2]
[351281162,1738505528236,-500.0,0.00012328,2]
[351281163,1738505528246,-2575.73,0.00012328,2]
[351281164,1738505528256,-1411.82,0.00012328,2]
[351281165,1738505528265,-500.0,0.00012328,2]
[351281166,1738505528275,-483.74211028,0.00012328,2]
[351281167,1738505528284,-500.0,0.00012328,2]
[351281168,1738505528294,-4332.07,0.00012328,2]
[351281169,1738505528303,-500.0,0.00012328,2]
[351281170,1738505528313,-623.14,0.00012328,2]
[351281171,1738505528323,-808.47,0.00012328,2]
[351281172,1738505528332,-500.0,0.00012328,2]
[351281173,1738505528342,-500.0,0.00012328,2]
[351281174,1738505528352,-500.0,0.00012328,2]
[351281175,1738505528362,-500.0,0.00012328,2]
[351281176,1738505528372,-1167.23,0.00012328,2]
[351281177,1738505528381,-1073.14,0.00012328,2]
[351281178,1738505528391,-1266.06,0.00012328,2]
[351281179,1738505528401,-1098.43,0.00012328,2]
[351281180,1738505528411,-1643.83,0.00012328,2]
[351281181,1738505528420,-2134.84,0.00012328,2]
[351281182,1738505528430,-7531.63,0.00012328,2]
[351281183,1738505528440,-636.47,0.00012328,2]
[351281184,1738505528450,-2806.74,0.00012328,2]
[351281185,1738505528459,-500.0,0.00012328,2]
[351281186,1738505528470,-4457.82,0.00012328,2]
[351281187,1738505528480,-500.0,0.00012328,2]
[351281188,1738505528490,-500.0,0.00012328,2]
[351281189,1738505528500,-1431.15,0.00012328,2]
[351281190,1738505528510,-500.0,0.00012328,2]
[351281191,1738505528520,-1068.36,0.00012328,2]
[351281192,1738505528530,-3317.75,0.00012328,2]
[351281193,1738505528543,-500.0,0.00012328,2]
[351281194,1738505528554,-500.0,0.00012328,2]
[351281195,1738505528565,-3236.23,0.00012328,2]
[351281196,1738505528579,-500.0,0.00012328,2]
[351281197,1738505528598,-500.0,0.00012328,2]
[351281198,1738505528619,-998.58,0.00012328,2]
[351281199,1738505528638,-649.19,0.00012328,2]
[351281200,1738505528657,-3603.07,0.00012328,2]
[351281201,1738505528673,-647.76,0.00012328,2]
[351281202,1738505528691,-518.71,0.00012328,2]
[351281203,1738505528712,-2773.67,0.00012328,2]
[351281204,1738505528737,-500.0,0.00012328,2]
[351281205,1738505528754,-3478.77,0.00012328,2]
[351281206,1738505528773,-1377.07,0.00012328,2]
[351281207,1738505528788,-500.0,0.00012328,2]
[351281208,1738505528805,-1559.79,0.00012328,2]
[351281209,1738505528821,-993.51,0.00012328,2]
[351281210,1738505528837,-1353.14,0.00012328,2]
[351281211,1738505528854,-532.1,0.00012328,2]
[351281212,1738505528872,-1889.01,0.00012328,2]
[351281213,1738505528888,-5584.57,0.00012328,2]
[351281214,1738505528904,-628.58,0.00012328,2]
[351281215,1738505528920,-500.0,0.00012328,2]
[351281216,1738505528936,-500.0,0.00012328,2]
[351281217,1738505528953,-1416.56,0.00012328,2]
[351281218,1738505528969,-966.92,0.00012328,2]
[351281219,1738505528987,-1706.09,0.00012328,2]
[351281220,1738505529004,-820.07,0.00012328,2]
[351281221,1738505529020,-865.01,0.00012328,2]
[351281222,1738505529036,-555.56,0.00012328,2]
[351281223,1738505529052,-500.0,0.00012328,2]
[351281224,1738505529069,-6599.2,0.00012328,2]
[351281225,1738505529085,-500.0,0.00012328,2]
[351281226,1738505529102,-500.0,0.00012328,2]
[351281227,1738505529120,-4362.97,0.00012328,2]
[351281228,1738505529136,-3023.49,0.00012328,2]
[351281229,1738505529151,-1475.65,0.00012328,2]
[351281230,1738505529167,-1337.09,0.00012328,2]
[351281231,1738505529182,-786.41,0.00012328,2]
[351281232,1738505529198,-1205.96,0.00012328,2]
[351281233,1738505529213,-1903.11,0.00012328,2]
[351281234,1738505529228,-2817.82,0.00012328,2]
[351281235,1738505529248,-2360.45,0.00012328,2]
[351281236,1738505529262,-500.0,0.00012328,2]
[351281237,1738505529278,-583.26,0.00012328,2]
[351281238,1738505529293,-934.52,0.00012328,2]
[351281239,1738505529309,-1388.22,0.00012328,2]
[351281240,1738505529324,-2432.51,0.00012328,2]
[351281241,1738505529340,-2243.95,0.00012328,2]
[351281242,1738505529356,-609.67,0.00012328,2]
[351281243,1738505529371,-1262.46,0.00012328,2]
[351281244,1738505529388,-2572.68,0.00012328,2]
[351281245,1738505529404,-1950.74,0.00012328,2]
[351281246,1738505529419,-500.0,0.00012328,2]
[351281247,1738505529435,-1181.19,0.00012328,2]
[351281248,1738505529451,-871.86,0.00012328,2]
[351281249,1738505529468,-191.62093803,0.00012328,2]
[351281250,1738505529484,-1126.88,0.00012328,2]
[351281251,1738505529501,-2805.0,0.00012328,2]
[351281252,1738505529518,-541.6,0.00012328,2]
[351281253,1738505529535,-2478.61,0.00012328,2]
[351281254,1738505529553,-3490.69,0.00012328,2]
[351281255,1738505529569,-1886.99,0.00012328,2]
[351281256,1738505529586,-693.62,0.00012328,2]
[351281257,1738505529601,-1166.42,0.00012328,2]
[351281258,1738505529616,-4718.72,0.00012328,2]
[351281259,1738505529632,-646.83,0.00012328,2]
[351281260,1738505529648,-500.0,0.00012328,2]
[351281261,1738505529663,-1219.56,0.00012328,2]
[351281262,1738505529680,-1713.43,0.00012328,2]
[351281263,1738505529695,-500.0,0.00012328,2]
[351281264,1738505529711,-764.96,0.00012328,2]
[351281265,1738505529726,-742.31,0.00012328,2]
[351281266,1738505529744,-585.08,0.00012328,2]
[351281267,1738505529760,-5247.94,0.00012328,2]
[351281268,1738505529775,-1545.21,0.00012328,2]
[351281269,1738505529791,-5157.65,0.00012328,2]
[351281270,1738505529806,-2240.61,0.00012328,2]
[351281271,1738505529822,-1481.58,0.00012328,2]
[351281272,1738505529838,-535.67,0.00012328,2]
[351281273,1738505529854,-1485.26,0.00012328,2]
[351281274,1738505529870,-1399.19,0.00012328,2]
[351281275,1738505529885,-3226.98,0.00012328,2]
[351281276,1738505529901,-1311.36,0.00012328,2]
[351281277,1738505529916,-500.0,0.00012328,2]
[351281278,1738505529932,-584.45391384,0.00012328,2]
[351281279,1738505529947,-5680.36,0.00012328,2]
[351281280,1738505529963,-2300.21,0.00012328,2]
[351281281,1738505529979,-500.0,0.00012328,2]
[351281282,1738505529996,-2521.42,0.00012328,2]
[351281283,1738505530012,-2782.57,0.00012328,2]
[351281284,1738505530028,-500.0,0.00012328,2]
[351281285,1738505530044,-500.0,0.00012328,2]
[351281286,1738505530059,-1766.1,0.00012328,2]
[351281287,1738505530075,-1697.0,0.00012328,2]
[351281288,1738505530091,-1939.71,0.00012328,2]
[351281289,1738505530106,-787.48,0.00012328,2]
[351281290,1738505530123,-1300.79,0.00012328,2]
[351281291,1738505530138,-3484.78,0.00012328,2]
[351281292,1738505530154,-500.0,0.00012328,2]
[351281293,1738505530170,-512.49,0.00012328,2]
[351281294,1738505530184,-500.0,0.00012328,2]
[351281295,1738505530199,-1213.23,0.00012328,2]
[351281296,1738505530216,-5629.82,0.00012328,2]
[351281297,1738505530233,-2449.26,0.00012328,2]
[351281298,1738505530248,-758.01,0.00012328,2]
[351281299,1738505530269,-848.99,0.00012328,2]
[351281300,1738505530285,-888.7,0.00012328,2]
[351281301,1738505530301,-4605.95,0.00012328,2]
[351281302,1738505530316,-2359.63,0.00012328,2]
[351281303,1738505530331,-892.49,0.00012328,2]
[351281304,1738505530346,-871.23,0.00012328,2]
[351281305,1738505530361,-1094.04,0.00012328,2]
[351281306,1738505530377,-6442.67,0.00012328,2]
[351281307,1738505530392,-1297.27,0.00012328,2]
[351281308,1738505530407,-2052.81,0.00012328,2]
[351281309,1738505530423,-2655.71,0.00012328,2]
[351281310,1738505530438,-1885.94,0.00012328,2]
[351281311,1738505530454,-188.24827462,0.00012328,2]
[351281312,1738505530469,-500.0,0.00012328,2]
[351281313,1738505530484,-10441.41,0.00012328,2]
[351281314,1738505530500,-1553.08,0.00012328,2]
[351281315,1738505530515,-500.0,0.00012328,2]
[351281316,1738505530530,-1012.3,0.00012328,2]
[351281317,1738505530548,-500.0,0.00012328,2]
[351281318,1738505530563,-4514.04,0.00012328,2]
[351281319,1738505530580,-3003.61,0.00012328,2]
[351281320,1738505530595,-2902.94,0.00012328,2]
[351281321,1738505530611,-1964.45,0.00012328,2]
[351281322,1738505530627,-4716.6,0.00012328,2]
[351281323,1738505530642,-1593.35,0.00012328,2]
[351281324,1738505530657,-500.0,0.00012328,2]
[351281325,1738505530674,-1637.22,0.00012328,2]
[351281326,1738505530965,-3416.51,0.00012328,2]
[351281327,1738505530987,-882.55,0.00012328,2]
[351281328,1738505530997,-500.0,0.00012328,2]
[351281329,1738505531007,-4127.67,0.00012328,2]
[351281330,1738505531016,-9172.95,0.00012328,2]
[351281331,1738505531026,-716.69,0.00012328,2]
[351281332,1738505531036,-3935.05,0.00012328,2]
[351281333,1738505531046,-994.51,0.00012328,2]
[351281334,1738505531056,-500.0,0.00012328,2]
[351281335,1738505531066,-500.0,0.00012328,2]
[351281336,1738505531075,-2231.33,0.00012328,2]
[351281337,1738505531085,-646.36,0.00012328,2]
[351281338,1738505531095,-7703.46,0.00012328,2]
[351281339,1738505531104,-612.75,0.00012328,2]
[351281340,1738505531114,-6130.86,0.00012328,2]
[351281341,1738505531124,-1008.29,0.00012328,2]
[351281342,1738505531133,-4888.75,0.00012328,2]
[351281343,1738505531143,-4468.98,0.00012328,2]
[351281344,1738505531152,-874.52,0.00012328,2]
[351281345,1738505531162,-7017.85,0.00012328,2]
[351281346,1738505531173,-7067.83,0.00012328,2]
[351281347,1738505531183,-504.51,0.00012328,2]
[351281348,1738505531193,-1694.57,0.00012328,2]
[351281349,1738505531203,-500.0,0.00012328,2]
[351281350,1738505531213,-809.09,0.00012328,2]
[351281351,1738505531222,-1463.68,0.00012328,2]
[351281352,1738505531235,-500.0,0.00012328,2]
[351281353,1738505531245,-957.1,0.00012328,2]
[351281354,1738505531255,-5901.35,0.00012328,2]
[351281355,1738505531264,-25450.62,0.00012328,2]
[351281356,1738505531274,-3194.77,0.00012328,2]
[351281357,1738505531284,-972.11,0.00012328,2]
[351281358,1738505531294,-500.0,0.00012328,2]
[351281359,1738505531305,-978.28,0.00012328,2]
[351281360,1738505531315,-1927.34,0.00012328,2]
[351281361,1738505531324,-1313.38,0.00012328,2]
[351281362,1738505531334,-2290.65,0.00012328,2]
[351281363,1738505531344,-161.03337933,0.00012328,2]
[351281364,1738505531354,-1822.98,0.00012328,2]
[351281365,1738505531363,-778.33,0.00012328,2]
[351281366,1738505531373,-2811.74,0.00012328,2]
[351281367,1738505531383,-500.0,0.00012328,2]
[351281368,1738505531393,-4241.49,0.00012328,2]
[351281369,1738505531402,-2753.15,0.00012328,2]
[351281370,1738505531413,-3179.79,0.00012328,2]
[351281371,1738505531423,-11875.49,0.00012328,2]
[351281372,1738505531433,-590.79,0.00012328,2]
[351281373,1738505531443,-500.0,0.00012328,2]
[351281374,1738505531457,-2422.99,0.00012328,2]
[351281375,1738505531467,-467.9569712,0.00012328,2]
[351281376,1738505531477,-1805.01,0.00012328,2]
[351281377,1738505531488,-535.95392431,0.00012328,2]
[351281378,1738505531498,-8941.69,0.00012328,2]
[351281379,1738505531508,-1720.61,0.00012328,2]
[351281380,1738505531519,-890.83,0.00012328,2]
[351281381,1738505531530,-500.0,0.00012328,2]
[351281382,1738505531540,-500.0,0.00012328,2]
[351281383,1738505531554,-924.98,0.00012328,2]
[351281384,1738505531564,-2796.09,0.00012328,2]
[351281385,1738505531574,-753.96,0.00012328,2]
[351281386,1738505531586,-2827.17,0.00012328,2]
[351281387,1738505531596,-1515.55,0.00012328,2]
[351281388,1738505531606,-500.0,0.00012328,2]
[351281389,1738505531618,-8022.15,0.00012328,2]
[351281390,1738505531628,-500.0,0.00012328,2]
[351281391,1738505531638,-1171.94,0.00012328,2]
[351281392,1738505531648,-500.0,0.00012328,2]
[351281393,1738505531658,-741.26,0.00012328,2]
[351281394,1738505531667,-1314.16,0.00012328,2]
[351281395,1738505531677,-500.0,0.00012328,2]
[351281396,1738505531687,-516.58828144,0.00012328,2]
[351281397,1738505531697,-596.08,0.00012328,2]
[351281398,1738505531706,-2587.99,0.00012328,2]
[351281399,1738505531716,-500.0,0.00012328,2]
[351281400,1738505531725,-770.44,0.00012328,2]
[351281401,1738505531736,-3707.36,0.00012328,2]
[351281402,1738505531746,-597.64872312,0.00012328,2]
[351281403,1738505531756,-651.22,0.00012328,2]
[351281404,1738505531766,-500.0,0.00012328,2]
[351281405,1738505531775,-500.0,0.00012328,2]
[351281406,1738505531785,-569.747187,0.00012329,2]
[351281407,1738505531795,-569.747187,0.00012329,2]
[351281408,1738505531805,-569.747187,0.00012329,2]
[351281409,1738505531815,-569.747187,0.00012329,2]
[351281410,1738505531825,-569.747187,0.00012329,2]
[351281411,1738505531835,-569.747187,0.00012329,2]
[351281412,1738505531845,-569.747187,0.00012329,2]
[351281413,1738505531855,-569.747187,0.00012329,2]
[351281414,1738505531864,-569.747187,0.00012329,2]
[351281415,1738505531874,-569.747187,0.00012329,2]
[351281416,1738505531884,-569.747187,0.00012329,2]
[351281417,1738505531894,-569.747187,0.00012329,2]
[351281418,1738505531903,-569.747187,0.00012329,2]
[351281419,1738505531913,-569.747187,0.00012329,2]
[351281420,1738505531922,-569.747187,0.00012329,2]
[351281421,1738505531932,-569.747187,0.00012329,2]
[351281422,1738505531941,-569.747187,0.00012329,2]
[351281423,1738505531950,-569.747187,0.00012329,2]
[351281424,1738505531960,-569.747187,0.00012329,2]
[351281425,1738505531971,-569.747189,0.00012329,2]
[351281426,1738505531981,-151.0,0.00012329,2]
[351281427,1738505531991,-151.0,0.00012329,2]
[351281428,1738505532001,-151.0,0.00012329,2]
[351281429,1738505532010,-151.0,0.00012329,2]
[351281430,1738505532019,-151.0,0.00012329,2]
[351281431,1738505532029,-151.0,0.00012329,2]
[351281432,1738505532039,-151.0,0.00012329,2]
[351281433,1738505532048,-151.0,0.00012329,2]
[351281434,1738505532057,-151.0,0.00012329,2]
[351281435,1738505532067,-788.039695,0.00012329,2]
[351281436,1738505532076,-788.039695,0.00012329,2]
[351281437,1738505532086,-788.039695,0.00012329,2]
[351281438,1738505532095,-788.039695,0.00012329,2]
[351281439,1738505532105,-788.039695,0.00012329,2]
[351281440,1738505532114,-788.039695,0.00012329,2]
[351281441,1738505532124,-788.039695,0.00012329,2]
[351281442,1738505532133,-788.039695,0.00012329,2]
[351281443,1738505532142,-788.039695,0.00012329,2]
[351281444,1738505532151,-788.039695,0.00012329,2]
[351281445,1738505532161,-788.039695,0.00012329,2]
[351281446,1738505532171,-788.039695,0.00012329,2]
[351281447,1738505532181,-788.039695,0.00012329,2]
[351281448,1738505532191,-788.039695,0.00012329,2]
[351281449,1738505532201,-788.039695,0.00012329,2]
[351281450,1738505532210,-788.039695,0.00012329,2]
[351281451,1738505532220,-788.039695,0.00012329,2]
[351281452,1738505532230,-788.039695,0.00012329,2]
[351281453,1738505532242,-788.039695,0.00012329,2]
[351281454,1738505532252,-788.039695,0.00012329,2]
[351281455,1738505532262,-151.0,0.00012329,2]
[351281456,1738505532272,-151.0,0.00012329,2]
[351281457,1738505532282,-151.0,0.00012329,2]
[351281458,1738505532293,-151.0,0.00012329,2]
[351281459,1738505532303,-151.0,0.00012329,2]
[351281460,1738505532313,-301.022886,0.00012329,2]
[351281461,1738505532323,-151.0,0.00012329,2]
[351281462,1738505532332,-231.451958,0.00012329,2]
[351281463,1738505532342,-216.364215,0.00012329,2]
[351281464,1738505532352,-231.451958,0.00012329,2]
[351281465,1738505532362,-231.451958,0.00012329,2]
[351281466,1738505532372,-231.451958,0.00012329,2]
[351281467,1738505532382,-231.451958,0.00012329,2]
[351281468,1738505532392,-231.451958,0.00012329,2]
[351281469,1738505532401,-231.451958,0.00012329,2]
[351281470,1738505532411,-231.451958,0.00012329,2]
[351281471,1738505532421,-231.451958,0.00012329,2]
[351281472,1738505532431,-231.451958,0.00012329,2]